bitfinex/quotes_SOLUSD_20251124
["timestamp","ask_amount","ask_price","bid_price","bid_amount"]
[1763954366998,0.69,134.01,133.98,18.68906497]
[1763954367626,0.69,134.01,133.99,11.22529659]
[1763954367929,11.36002264,134.04,134.0,11.22529659]
[1763954368222,0.82472605,134.04,134.0,11.22529659]
[1763954368423,0.82472605,134.04,134.01,29.34625659]
[1763954368603,0.82472605,134.04,134.03,11.22529659]
[1763954368803,0.82472605,134.04,134.02,11.22529659]
[1763954369134,0.82472605,134.04,134.02,18.68648536]
[1763954369634,0.82472605,134.04,134.01,29.34625659]
[1763954369831,0.82472605,134.04,134.02,11.22529659]
[1763954370601,0.13472605,134.04,134.03,11.22529659]
[1763954371003,0.13472605,134.04,134.03,14.56529659]
[1763954371303,0.13472605,134.04,134.03,22.02631278]
[1763954371947,0.13472605,134.04,134.03,22.21631278]
[1763954372131,0.13472605,134.04,134.03,40.33727278]
[1763954372351,0.07530418,134.08,134.03,108.98981325]
[1763954372637,0.07530418,134.08,134.07,11.22529659]
[1763954373406,0.07530418,134.08,134.07,18.68408677]
[1763954373611,0.07530418,134.08,134.07,11.22529659]
[1763954374924,0.07530418,134.08,134.07,18.68408677]
[1763954375126,0.07530418,134.08,134.07,11.22529659]
[1763954375311,0.21018297,134.08,134.07,11.22529659]
[1763954375912,0.90018297,134.08,134.05,11.22529659]
[1763954376121,0.90018297,134.08,134.06,11.22529659]
[1763954376317,0.69,134.07,134.06,11.22529659]
[1763954376720,0.21018297,134.08,134.06,11.22529659]
[1763954376919,0.90018297,134.08,134.07,11.22529659]
[1763954377427,0.21018297,134.08,134.07,18.68408677]
[1763954378110,0.21018297,134.08,134.06,7.45920039]
[1763954378316,0.21018297,134.08,134.06,11.22529659]
[1763954378730,0.69,134.07,134.06,11.22529659]
[1763954379030,0.90018297,134.08,134.06,11.22529659]
[1763954380109,0.90018297,134.08,134.06,18.68463581]
[1763954381643,0.69,134.07,134.04,0.74604595]
[1763954381810,0.69,134.07,134.04,11.22529659]
[1763954382615,11.91529659,134.07,134.03,11.22529659]
[1763954382937,0.21018297,134.08,134.06,11.22529659]
[1763954383134,0.21018297,134.08,134.07,11.9711756]
[1763954383525,0.21018297,134.08,134.07,12.1611756]
[1763954383727,0.21018297,134.08,134.07,19.42996578]
[1763954384651,0.21018297,134.08,134.07,8.20466919]
[1763954384827,0.21018297,134.08,134.07,19.42996578]
[1763954385971,0.14579134,134.1,134.08,72.56]
[1763954385972,0.09579134,134.1,134.08,72.56]
[1763954386132,0.15536209,134.12,134.1,68.12096]
[1763954386453,0.15536209,134.12,134.11,15.31095314]
[1763954387838,0.15536209,134.12,134.11,22.76751864]
[1763954389063,0.15536209,134.12,134.11,14.56529659]
[1763954389270,0.15536209,134.12,134.11,11.22529659]
[1763954389640,0.87536209,134.12,134.1,11.22529659]
[1763954389834,0.15536209,134.12,134.11,11.22529659]
[1763954390058,0.15536209,134.12,134.11,15.31095314]
[1763954392059,0.15536209,134.12,134.11,22.76751864]
[1763954392435,0.15415493,134.16,134.12,50.0]
[1763954392640,0.15415493,134.16,134.15,11.22529659]
[1763954392836,0.87415493,134.16,134.15,11.22529659]
[1763954393350,0.15415493,134.16,134.15,11.22529659]
[1763954394042,0.87415493,134.16,134.15,18.67963874]
[1763954394560,0.15415493,134.16,134.15,18.67963874]
[1763954394949,0.87415493,134.16,134.15,7.45434215]
[1763954395147,0.15415493,134.16,134.15,18.67963874]
[1763954395337,0.29848967,134.16,134.15,18.67963874]
[1763954395863,0.29848967,134.16,134.15,19.42507295]
[1763954396050,1.01848967,134.16,134.15,0.74543421]
[1763954396259,1.01848967,134.16,134.14,14.56529659]
[1763954396260,1.01848967,134.16,134.14,32.68625659]
[1763954396458,0.14433474,134.16,134.14,36.80115226]
[1763954396655,0.14433474,134.16,134.15,7.86939658]
[1763954396840,0.86433474,134.16,134.15,7.86939658]
[1763954397259,0.14433474,134.16,134.15,0.74543421]
[1763954397469,0.14433474,134.16,134.15,7.86939658]
[1763954398240,0.86433474,134.16,134.15,8.19977636]
[1763954398436,0.86433474,134.16,134.15,0.74543421]
[1763954398759,0.86433474,134.16,134.14,18.86644978]
[1763954399354,0.86433474,134.16,134.14,33.4452475]
[1763954399571,7.98829711,134.16,134.11,0.74565655]
[1763954399767,7.12396237,134.15,134.1,7.45696687]
[1763954399944,0.14433474,134.16,134.15,18.12096]
[1763954400145,0.14433474,134.16,134.15,0.74543421]
[1763954400357,0.14433474,134.16,134.15,14.57830452]
[1763954400548,0.14433474,134.16,134.15,15.32373873]
[1763954401164,1e-08,134.22,134.21,68.12096]
[1763954401341,1e-08,134.25,134.24,72.56]
[1763954401543,0.72,134.27,134.24,21.46096]
[1763954401742,1.99999999,134.38,134.24,21.46096]
[1763954402014,0.72,134.26,134.23,7.12396237]
[1763954402344,0.72,134.26,134.23,14.57380437]
[1763954402548,7.12396237,134.25,134.19,18.12096]
[1763954402774,7.84396237,134.26,134.21,7.12396237]
[1763954402951,0.72,134.25,134.2,7.45156482]
[1763954403272,0.72,134.25,134.22,7.12396237]
[1763954403867,0.72,134.25,134.23,7.12396237]
[1763954404268,0.72,134.25,134.22,25.24492237]
[1763954404478,0.72,134.25,134.23,7.12396237]
[1763954404650,0.72,134.25,134.22,32.69532816]
[1763954405664,0.72,134.25,134.23,7.12396237]
[1763954405862,0.72,134.25,134.22,25.57136579]
[1763954406068,7.84396237,134.25,134.22,18.12096]
[1763954406274,7.84396237,134.25,134.22,25.57134288]
[1763954406460,0.72,134.24,134.22,25.57134288]
[1763954406652,7.12396237,134.28,134.23,7.12396237]
[1763954407073,0.72,134.27,134.23,7.12396237]
[1763954407288,7.84396237,134.27,134.23,7.12396237]
[1763954407667,0.72,134.26,134.23,7.12396237]
[1763954408280,0.72,134.26,134.24,7.44934445]
[1763954408475,0.72,134.29,134.25,7.12396237]
[1763954408775,0.72,134.29,134.28,7.12396237]
[1763954408961,0.72,134.29,134.27,7.12396237]
[1763954409163,0.72,134.29,134.25,18.12096]
[1763954409367,0.72,134.29,134.25,25.24492237]
[1763954409765,7.12396237,134.33,134.28,7.12396237]
[1763954409961,7.12396237,134.33,134.29,7.12396237]
[1763954410171,7.12396237,134.3,134.26,7.12396237]
[1763954410570,0.72,134.29,134.26,7.12396237]
[1763954411888,0.72,134.29,134.25,18.12096]
[1763954412067,7.12396237,134.26,134.2,3.34]
[1763954412266,0.72,134.29,134.23,7.12396237]
[1763954412482,7.12396237,134.27,134.22,7.12396237]
[1763954412781,7.12396237,134.26,134.22,7.12396237]
[1763954412983,0.72,134.25,134.22,7.12396237]
[1763954413360,0.72,134.25,134.22,69.22396237]
[1763954413682,7.12396237,134.23,134.19,7.12396237]
[1763954413887,7.12396237,134.24,134.18,65.44]
[1763954414198,0.72,134.23,134.18,7.12396237]
[1763954414504,7.12396237,134.22,134.18,7.12396237]
[1763954414993,0.72,134.21,134.16,7.45365622]
[1763954415187,0.72,134.21,134.15,26.41]
[1763954415188,0.13552626,134.19,134.18,7.12396237]
[1763954415370,0.85552626,134.19,134.13,0.74554536]
[1763954415570,7.97948863,134.19,134.15,7.12396237]
[1763954415784,0.85552626,134.19,134.16,7.12396237]
[1763954415962,0.13552626,134.19,134.18,7.12396237]
[1763954416362,0.13552626,134.19,134.18,14.57663788]
[1763954416576,0.13552626,134.19,134.18,18.58663788]
[1763954416779,0.14883113,134.21,134.19,25.24492237]
[1763954416976,0.14883113,134.21,134.2,58.30911885]
[1763954417183,0.14662138,134.22,134.2,58.30911885]
[1763954417391,0.14662138,134.22,134.21,3.34]
[1763954417690,0.14662138,134.22,134.21,10.75396237]
[1763954417989,0.14662138,134.22,134.21,10.46396237]
[1763954418199,0.15499849,134.26,134.23,68.12096]
[1763954418406,1e-08,134.26,134.25,50.0]
[1763954418704,0.145181,134.28,134.27,50.0]
[1763954418859,0.145181,134.28,134.27,57.86873037]
[1763954419288,0.145181,134.28,134.27,25.98969037]
[1763954419487,0.145181,134.28,134.27,57.86873037]
[1763954419888,0.145181,134.28,134.27,25.98969037]
[1763954420359,0.145181,134.28,134.27,33.43737041]
[1763954420565,0.145181,134.28,134.27,15.31641041]
[1763954420997,0.145181,134.28,134.27,8.19244804]
[1763954421194,0.145181,134.28,134.27,15.31641041]
[1763954421589,0.145181,134.28,134.27,8.19244804]
[1763954421787,0.835181,134.28,134.27,7.12396237]
[1763954422587,0.835181,134.28,134.26,7.12396237]
[1763954423810,0.145181,134.28,134.27,7.12396237]
[1763954424105,0.145181,134.28,134.27,32.69260241]
[1763954425482,0.145181,134.28,134.27,82.69260241]
[1763954425903,0.69,134.35,134.27,101.31180252]
[1763954426109,0.69,134.34,134.31,7.12396237]
[1763954426296,0.69,134.34,134.28,3.34]
[1763954426609,0.69,134.34,134.3,7.12396237]
[1763954428110,0.69,134.34,134.28,7.12396237]
[1763954428284,0.69,134.34,134.25,90.08275109]
[1763954428285,7.12396237,134.32,134.25,10.78862275]
[1763954428490,7.12396237,134.32,134.28,7.12396237]
[1763954428805,0.69,134.31,134.28,7.12396237]
[1763954429308,0.69,134.31,134.29,7.12396237]
[1763954429715,0.69,134.31,134.28,7.12396237]
[1763954429926,7.81396237,134.31,134.27,7.12396237]
[1763954430104,0.69,134.31,134.27,7.12396237]
[1763954430303,0.69,134.3,134.27,7.12396237]
[1763954431415,0.69,134.3,134.29,7.12396237]
[1763954432408,0.69,134.3,134.26,7.44807633]
[1763954432612,7.81396237,134.3,134.26,7.12396237]
[1763954432810,0.69,134.3,134.28,7.12396237]
[1763954433118,0.69,134.29,134.28,7.12396237]
[1763954433618,0.69,134.32,134.28,7.12396237]
[1763954433792,0.69,134.32,134.27,26.06606813]
[1763954433994,0.69,134.32,134.29,7.12396237]
[1763954434218,0.69,134.32,134.3,7.12396237]
[1763954435022,0.69,134.32,134.29,7.12396237]
[1763954435318,0.14214289,134.31,134.29,7.12396237]
[1763954435712,0.83214289,134.31,134.29,14.57052447]
[1763954436011,0.83214289,134.31,134.29,7.12396237]
[1763954436819,0.83214289,134.31,134.3,7.12396237]
[1763954437615,0.83214289,134.31,134.29,7.12396237]
[1763954437918,0.83214289,134.31,134.3,7.12396237]
[1763954439718,0.14214289,134.31,134.3,14.56997875]
[1763954439938,0.14214289,134.31,134.3,8.19061801]
[1763954440093,0.14214289,134.31,134.3,15.31458038]
[1763954440295,0.14214289,134.31,134.3,44.83854275]
[1763954440517,0.15545931,134.34,134.33,72.4]
[1763954440727,1e-08,134.4,134.39,72.4]
[1763954440901,3.88858677,134.57,134.45,50.0]
[1763954441105,0.69,134.55,134.49,7.12396237]
[1763954441325,0.69,134.55,134.49,3.36]
[1763954441326,0.69,134.53,134.49,3.36]
[1763954441628,0.69,134.52,134.49,7.12396237]
[1763954442232,0.69,134.55,134.49,57.12396237]
[1763954442932,0.69,134.55,134.49,64.55945943]
[1763954443229,0.69,134.55,134.49,14.55945943]
[1763954443833,0.69,134.55,134.49,7.43549706]
[1763954444020,0.69,134.55,134.49,14.55945943]
[1763954444424,1e-08,134.5,134.49,64.55945943]
[1763954445914,16.1846,134.59,134.51,72.4]
[1763954446227,0.72,134.58,134.52,3.34]
[1763954446533,0.72,134.58,134.52,7.12396237]
[1763954446534,7.12396237,134.57,134.52,7.12396237]
[1763954446737,0.72,134.56,134.52,7.12396237]
[1763954446915,0.72,134.56,134.48,7.4358829]
[1763954447113,0.72,134.56,134.49,7.12396237]
[1763954447309,0.72,134.56,134.5,7.12396237]
[1763954447616,7.84396237,134.56,134.49,26.0241864]
[1763954447816,7.84396237,134.56,134.51,7.12396237]
[1763954448123,7.84396237,134.55,134.5,7.12396237]
[1763954448325,7.12396237,134.54,134.49,14.55940612]
[1763954448521,0.72,134.53,134.49,14.55940612]
[1763954448742,0.72,134.53,134.5,7.12396237]
[1763954448924,0.72,134.53,134.49,14.55940612]
[1763954449107,0.72,134.53,134.49,7.12396237]
[1763954449311,0.72,134.53,134.5,7.12396237]
[1763954449540,0.72,134.53,134.49,14.55942671]
[1763954449727,7.84396237,134.53,134.49,7.12396237]
[1763954450126,0.72,134.55,134.48,26.02613969]
[1763954450325,15.4646,134.59,134.5,7.12396237]
[1763954450326,7.12396237,134.54,134.5,7.12396237]
[1763954450541,7.12396237,134.54,134.49,7.12396237]
[1763954450836,0.72,134.53,134.49,7.12396237]
[1763954451536,0.72,134.53,134.49,14.55927856]
[1763954452051,7.12396237,134.52,134.43,50.0]
[1763954452242,0.72,134.53,134.45,7.12396237]
[1763954452442,7.12396237,134.5,134.46,7.12396237]
[1763954452934,0.72,134.49,134.46,7.12396237]
[1763954453131,0.72,134.49,134.42,10.77936914]
[1763954453320,7.84396237,134.49,134.44,7.12396237]
[1763954453524,7.12396237,134.48,134.43,7.12396237]
[1763954453737,7.84396237,134.48,134.43,7.12396237]
[1763954453942,0.72,134.47,134.44,7.12396237]
[1763954454431,0.72,134.47,134.45,7.12396237]
[1763954454634,0.72,134.47,134.44,7.12396237]
[1763954455347,0.14737346,134.45,134.44,14.56197737]
[1763954455723,0.86737346,134.45,134.44,7.12396237]
[1763954456947,0.86737346,134.45,134.44,14.56222479]
[1763954457327,0.14737346,134.45,134.44,7.12396237]
[1763954457543,0.14737346,134.45,134.44,14.56222479]
[1763954458628,0.14737346,134.45,134.44,18.54940567]
[1763954459251,0.86737346,134.45,134.43,18.54946257]
[1763954459447,0.86737346,134.45,134.44,11.11114325]
[1763954459954,0.14737346,134.45,134.44,11.11114325]
[1763954460252,0.14737346,134.45,134.44,11.85496949]
[1763954460435,0.15993243,134.46,134.45,18.12096]
[1763954460647,0.13892785,134.52,134.48,68.12096]
[1763954460942,0.72,134.58,134.52,18.12096]
[1763954461126,0.72,134.58,134.52,32.57210325]
[1763954461324,0.72,134.58,134.52,90.00594208]
[1763954461526,0.72,134.57,134.52,78.89479883]
[1763954461753,0.07500533,134.61,134.57,18.12096]
[1763954461927,16.1846,134.59,134.57,50.0]
[1763954462125,15.4646,134.59,134.54,71.46096]
[1763954462949,15.4646,134.59,134.58,11.11114325]
[1763954463149,15.4646,134.59,134.57,3.34]
[1763954463457,16.1846,134.59,134.54,50.0]
[1763954463621,16.1846,134.59,134.57,11.11114325]
[1763954463822,0.72,134.58,134.52,0.74338388]
[1763954464030,11.83114325,134.58,134.53,11.11114325]
[1763954464248,0.72,134.58,134.53,11.11114325]
[1763954464445,11.83114325,134.57,134.52,11.11114325]
[1763954464747,11.11114325,134.56,134.52,11.11114325]
[1763954464954,11.11114325,134.56,134.49,18.12096]
[1763954464955,11.83114325,134.55,134.48,8.17926212]
[1763954465146,0.72,134.55,134.49,11.11114325]
[1763954465347,0.72,134.54,134.5,18.54591488]
[1763954465954,11.83114325,134.54,134.5,11.11114325]
[1763954466151,0.72,134.54,134.5,18.54603289]
[1763954466455,0.72,134.53,134.51,11.11114325]
[1763954466638,0.72,134.54,134.51,11.11114325]
[1763954466837,11.11114325,134.55,134.51,11.11114325]
[1763954467041,0.72,134.54,134.5,11.11114325]
[1763954467344,11.83114325,134.54,134.5,11.11114325]
[1763954467958,0.72,134.53,134.5,11.11114325]
[1763954468655,0.72,134.53,134.49,7.43549272]
[1763954468856,0.72,134.53,134.5,11.11114325]
[1763954469052,11.83114325,134.53,134.47,7.43617992]
[1763954469259,11.83114325,134.53,134.48,11.11114325]
[1763954469442,0.72,134.52,134.47,7.43617992]
[1763954469647,0.72,134.52,134.48,11.11114325]
[1763954470352,11.83114325,134.52,134.48,11.11114325]
[1763954470544,11.11114325,134.5,134.46,7.4370991]
[1763954470741,11.11114325,134.5,134.46,18.54824235]
[1763954470947,0.72,134.49,134.46,18.54824235]
[1763954471254,0.72,134.49,134.47,11.11114325]
[1763954471431,0.72,134.52,134.48,18.54719322]
[1763954471632,0.72,134.52,134.51,11.11114325]
[1763954471846,0.72,134.55,134.51,11.11114325]
[1763954472033,0.72,134.54,134.52,11.11114325]
[1763954472658,0.72,134.54,134.51,11.11114325]
[1763954472861,0.72,134.54,134.52,11.11114325]
[1763954473051,0.72,134.54,134.49,4.0835497]
[1763954473249,15.4646,134.59,134.53,11.11114325]
[1763954473448,0.72,134.57,134.54,7.43237778]
[1763954473646,0.72,134.57,134.54,18.54352103]
[1763954473858,11.11114325,134.55,134.44,50.0]
[1763954474056,0.72,134.57,134.51,11.11114325]
[1763954474358,11.11114325,134.55,134.51,11.11114325]
[1763954474570,0.67,134.56,134.5,11.11114325]
[1763954474746,11.78114325,134.55,134.5,11.11114325]
[1763954475132,0.67,134.55,134.53,11.11114325]
[1763954475352,0.14340701,134.54,134.53,11.11114325]
[1763954475551,0.14340701,134.54,134.53,18.5444295]
[1763954475839,0.14340701,134.54,134.53,15.3478295]
[1763954476048,0.14537308,134.55,134.53,68.6878295]
[1763954476251,0.14537308,134.55,134.54,11.85441662]
[1763954476455,0.13546588,134.56,134.53,29.35650188]
[1763954476739,0.83546588,134.56,134.53,18.5444295]
[1763954477053,0.83546588,134.56,134.53,26.01650188]
[1763954477242,0.83546588,134.56,134.53,18.5444295]
[1763954477445,0.83546588,134.56,134.52,18.54481271]
[1763954478341,11.94660913,134.56,134.52,18.54481271]
[1763954478538,11.94660913,134.56,134.51,7.43434428]
[1763954478539,11.81114325,134.55,134.51,7.43434428]
[1763954478745,11.81114325,134.55,134.51,18.54548753]
[1763954478961,0.7,134.54,134.51,18.54548753]
[1763954479164,0.7,134.54,134.51,7.43434428]
[1763954479349,0.7,134.54,134.51,18.54548753]
[1763954480567,0.7,134.54,134.5,18.54599874]
[1763954481542,0.7,134.54,134.51,11.11114325]
[1763954481761,0.7,134.54,134.51,18.54543769]
[1763954481987,11.81114325,134.54,134.5,11.11114325]
[1763954482147,0.7,134.53,134.5,11.11114325]
[1763954483646,0.7,134.53,134.49,11.11114325]
[1763954484160,0.7,134.53,134.43,18.59626182]
[1763954484464,11.11114325,134.51,134.46,11.11114325]
[1763954484659,0.7,134.53,134.47,11.11114325]
[1763954484862,3.34,134.54,134.49,11.11114325]
[1763954484863,0.7,134.52,134.49,11.11114325]
[1763954485068,0.7,134.52,134.5,11.11114325]
[1763954485371,0.7,134.52,134.49,11.11114325]
[1763954485773,0.7,134.52,134.5,11.11114325]
[1763954486257,0.7,134.52,134.5,18.54578358]
[1763954487150,0.7,134.52,134.48,18.54664799]
[1763954487360,11.81114325,134.52,134.47,18.54764122]
[1763954487851,0.7,134.51,134.48,11.11114325]
[1763954488052,0.7,134.51,134.49,11.11114325]
[1763954488366,0.7,134.51,134.49,18.54649811]
[1763954488963,0.7,134.51,134.48,18.54714489]
[1763954489646,11.11114325,134.49,134.43,7.43881574]
[1763954489845,11.11114325,134.49,134.44,11.11114325]
[1763954490075,11.81114325,134.48,134.43,7.43881574]
[1763954490284,11.11114325,134.47,134.4,18.60062143]
[1763954490571,11.11114325,134.47,134.34,0.2]
[1763954490572,11.11114325,134.41,134.34,0.2]
[1763954490778,11.11114325,134.4,134.35,18.55431221]
[1763954490966,11.11114325,134.42,134.38,11.11114325]
[1763954491363,11.81114325,134.41,134.36,11.11114325]
[1763954491778,11.81114325,134.4,134.36,11.11114325]
[1763954491979,0.7,134.4,134.36,11.11114325]
[1763954492152,11.11114325,134.41,134.35,7.44316896]
[1763954492153,0.7,134.39,134.35,7.44316896]
[1763954492349,0.7,134.39,134.36,11.11114325]
[1763954493064,11.11114325,134.41,134.38,11.11114325]
[1763954493065,0.7,134.41,134.38,11.11114325]
[1763954493771,0.7,134.41,134.37,11.11114325]
[1763954494158,11.81114325,134.41,134.37,11.11114325]
[1763954494388,0.7,134.4,134.36,18.55334592]
[1763954494866,11.81114325,134.4,134.34,22.95848101]
[1763954495069,11.11114325,134.39,134.34,34.06962426]
[1763954495282,0.15546106,134.36,134.35,11.11114325]
[1763954495860,0.15546106,134.36,134.35,11.85546777]
[1763954496269,0.15546106,134.36,134.35,18.5543885]
[1763954496879,0.14138547,134.37,134.36,61.94453894]
[1763954497084,0.14138547,134.37,134.36,73.05568219]
[1763954497458,0.14138547,134.37,134.36,61.94453894]
[1763954497655,0.84138547,134.37,134.36,61.94453894]
[1763954497888,0.14138547,134.37,134.36,73.05568219]
[1763954498380,0.14138547,134.37,134.36,11.11114325]
[1763954500371,0.14138547,134.37,134.36,18.55383452]
[1763954501867,0.84138547,134.37,134.35,7.44306106]
[1763954502075,0.84138547,134.37,134.35,18.55420431]
[1763954502273,0.84138547,134.37,134.35,7.44306106]
[1763954502485,0.14138547,134.37,134.36,11.11114325]
[1763954502701,0.14138547,134.37,134.36,61.94453894]
[1763954502869,0.14138547,134.37,134.36,73.05568219]
[1763954503067,0.14138547,134.37,134.36,61.94453894]
[1763954503274,0.14138547,134.37,134.36,73.05568219]
[1763954503971,0.84138547,134.37,134.36,61.94453894]
[1763954504367,0.14138547,134.37,134.36,61.94453894]
[1763954504678,0.14138547,134.37,134.36,80.49837346]
[1763954505272,0.14138547,134.37,134.36,69.38723021]
[1763954505679,0.14138547,134.37,134.36,80.49837346]
[1763954506193,0.14138547,134.37,134.36,69.38723021]
[1763954506392,0.14138547,134.37,134.36,80.49837346]
[1763954508582,0.15176304,134.38,134.37,61.80315347]
[1763954508783,0.87176304,134.38,134.37,61.80315347]
[1763954510095,0.87176304,134.38,134.37,69.24529085]
[1763954510298,0.87176304,134.38,134.37,61.80315347]
[1763954511102,11.98290629,134.38,134.37,61.08315347]
[1763954511682,11.98290629,134.38,134.34,0.2]
[1763954511883,11.83114325,134.37,134.34,0.2]
[1763954512302,0.72,134.36,134.34,7.6437272]
[1763954514199,0.72,134.36,134.34,0.2]
[1763954514998,0.72,134.36,134.34,7.64356537]
[1763954515180,0.87176304,134.38,134.34,18.75470862]
[1763954515503,0.14995907,134.35,134.34,18.75470862]
[1763954515701,0.14995907,134.35,134.34,19.41470862]
[1763954515899,0.14995907,134.35,134.34,18.75470862]
[1763954517501,0.15160595,134.36,134.35,60.9331944]
[1763954518288,0.87160595,134.36,134.35,60.9331944]
[1763954518683,7.97693451,134.36,134.34,0.2]
[1763954518886,7.10532856,134.35,134.34,0.2]
[1763954519181,7.82532856,134.35,134.34,0.2]
[1763954519483,0.72,134.35,134.34,0.2]
[1763954519886,7.82532856,134.35,134.34,0.2]
[1763954520492,0.15160595,134.36,134.34,76.34229008]
[1763954520687,0.15160595,134.36,134.35,7.10532856]
[1763954520894,0.15903494,134.37,134.35,34.24965308]
[1763954521100,0.15358153,134.39,134.38,72.4]
[1763954521303,0.15011014,134.4,134.38,83.58948691]
[1763954521505,0.15011014,134.4,134.39,0.56]
[1763954521677,0.15011014,134.4,134.39,7.66532856]
[1763954522183,0.14033521,134.41,134.39,25.78628856]
[1763954522382,1e-08,134.42,134.41,29.83992262]
[1763954522614,0.72,134.51,134.44,50.0]
[1763954522936,0.1,134.52,134.5,7.10532856]
[1763954523091,0.1,134.52,134.49,7.10532856]
[1763954523416,0.82,134.52,134.49,7.10532856]
[1763954524310,0.82,134.52,134.5,7.10532856]
[1763954524494,0.82,134.52,134.48,7.43572039]
[1763954524697,0.82,134.52,134.47,14.54188688]
[1763954524991,0.82,134.52,134.48,7.10532856]
[1763954525310,0.82,134.52,134.47,26.02806571]
[1763954525504,0.82,134.52,134.48,7.10532856]
[1763954526817,0.82,134.52,134.49,7.10532856]
[1763954527130,0.1,134.52,134.5,7.10532856]
[1763954527490,0.82,134.52,134.49,7.10532856]
[1763954527691,0.82,134.52,134.48,7.43550041]
[1763954528084,7.10532856,134.51,134.47,14.54179795]
[1763954528280,7.10532856,134.51,134.46,14.54237251]
[1763954528507,7.82532856,134.5,134.45,10.44532856]
[1763954528712,0.72,134.5,134.46,7.10532856]
[1763954528908,0.72,134.49,134.46,14.54233942]
[1763954529111,7.20532856,134.52,134.47,7.10532856]
[1763954529282,0.72,134.5,134.48,7.10532856]
[1763954529481,0.72,134.51,134.48,7.10532856]
[1763954529685,0.72,134.51,134.47,7.10532856]
[1763954530120,0.72,134.51,134.48,7.10532856]
[1763954532128,0.1,134.52,134.49,7.10532856]
[1763954532318,0.82,134.52,134.49,7.10532856]
[1763954532711,0.82,134.52,134.5,7.10532856]
[1763954532712,0.1,134.52,134.5,7.10532856]
[1763954533017,0.1,134.52,134.49,0.56]
[1763954533018,0.1,134.52,134.51,7.10532856]
[1763954533308,0.1,134.52,134.5,7.10532856]
[1763954533523,0.82,134.52,134.5,7.10532856]
[1763954534023,0.82,134.52,134.49,7.43549706]
[1763954534198,7.92532856,134.52,134.48,7.43596358]
[1763954534397,7.92532856,134.52,134.46,3.34]
[1763954534398,7.92532856,134.52,134.47,14.54181055]
[1763954534613,0.72,134.51,134.47,7.43648199]
[1763954534822,7.10532856,134.48,134.4,7.44047619]
[1763954535126,7.10532856,134.47,134.42,7.10532856]
[1763954535308,7.10532856,134.47,134.4,44.72221368]
[1763954535309,0.16357161,134.42,134.41,7.10532856]
[1763954535505,0.1631448,134.43,134.41,8.40932082]
[1763954535724,0.14502474,134.44,134.42,57.50532856]
[1763954536022,0.15773148,134.46,134.44,50.0]
[1763954536224,0.15773148,134.46,134.45,11.41909947]
[1763954536802,0.15773148,134.46,134.45,4.31377091]
[1763954537002,0.15773148,134.46,134.45,18.85680865]
[1763954537602,0.13520161,134.49,134.46,50.0]
[1763954537819,0.13520161,134.49,134.46,57.33532856]
[1763954538129,0.13520161,134.49,134.47,8.07898885]
[1763954538327,0.13520161,134.49,134.48,10.44532856]
[1763954538717,0.13520161,134.49,134.48,10.67532856]
[1763954538928,0.13520161,134.49,134.48,3.34]
[1763954539231,0.13520161,134.49,134.48,17.88137853]
[1763954539527,0.13520161,134.49,134.48,10.77604997]
[1763954539730,0.13520161,134.49,134.48,10.44532856]
[1763954539929,0.85520161,134.49,134.44,68.59521124]
[1763954540129,0.13520161,134.49,134.48,7.10532856]
[1763954540503,0.85520161,134.49,134.46,10.44532856]
[1763954540699,0.85520161,134.49,134.46,7.10532856]
[1763954541009,0.85520161,134.49,134.48,7.10532856]
[1763954541627,0.13520161,134.49,134.48,14.54137853]
[1763954541830,0.85520161,134.49,134.47,7.10532856]
[1763954542032,7.96053017,134.49,134.45,7.10532856]
[1763954542416,0.72,134.48,134.45,7.10532856]
[1763954542626,7.82532856,134.48,134.44,14.54342561]
[1763954543032,0.72,134.47,134.44,14.54342561]
[1763954544238,0.72,134.47,134.44,68.03852296]
[1763954544539,0.13520161,134.49,134.46,7.10532856]
[1763954544710,0.13520161,134.49,134.48,7.10532856]
[1763954544904,0.82,134.52,134.48,7.10532856]
[1763954545211,0.1,134.52,134.49,14.54082562]
[1763954545724,0.82,134.52,134.49,14.54082562]
[1763954546229,7.92532856,134.52,134.47,10.44532856]
[1763954546436,7.10532856,134.5,134.46,14.5423132]
[1763954546823,7.82532856,134.49,134.46,7.43698464]
[1763954547147,0.72,134.49,134.46,7.43698464]
[1763954547435,0.72,134.48,134.45,14.54287109]
[1763954547738,7.82532856,134.51,134.46,7.10532856]